[Event "37th ECCC 2022"]
[Site "Mayrhofen"]
[Date "2022.10.06"]
[Round "4.34"]
[White "Asadli, Vugar"]
[Black "Kenneskog, Theodor"]
[Result "1-0"]
[ECO "B23"]
[WhiteElo "2575"]
[BlackElo "2320"]
[Annotator "TA"]
[PlyCount "69"]
[EventDate "2022.10.03"]
[EventType "team-tourn"]
[EventCountry "AUT"]
[SourceTitle "playchess.com"]
[Source "ChessBase"]
[SourceQuality "1"]
[TimeControl "40/5400+30:1800+30"]

{[%evp 9,69,0,0,0,0,-16,0,0,24,10,20,7,75,74,61,79,79,77,79,66,57,58,84,78,142,0,0,0,76,80,79,76,79,87,64,-35,212,219,218,227,237,214,213,190,198,199,390,395,380,374,615,456,456,456,447,411,426,389,466,428,600,531]} 1. e4 {[%emt 0:00:04]} c5 {[%emt 0:00:07]} 2. Nc3 {[%emt 0:00:10]} d6 {[%emt 0:00:06]} 3. f4 {[%emt 0:00:03]} g6 {[%emt 0:00:30]} 4. Nf3 {[%emt 0:00:14]} Bg7 {[%emt 0:00:06]} 5. Bb5+ {[%emt 0:00:15]} Bd7 {[%emt 0:00:05]} 6. Bc4 {[%emt 0:00:11] B23: Closed Sicilian: Lines without g3.} Nc6 {[%emt 0:00:17]} 7. d3 {[%emt 0:00:11]} e6 {[%emt 0:00:17]} 8. f5 {[%emt 0:00:22] The position is equal.} gxf5 {[%emt 0:20:43]} 9. exf5 {[%emt 0:01:13]} (9. O-O $5 {[%cal Re4f5]}) 9... d5 {[%emt 0:02:54]} 10. Bb5 {[%emt 0:00:12]} Nd4 {[%emt 0:17:05]} (10... Nge7 $11 {remains equal.}) 11. Nxd4 $16 {[%emt 0:16:21] [#]} Qh4+ $146 {[%emt 0:22:28]} (11... Bxd4 12. fxe6 fxe6 13. Qh5+ Ke7 14. Bg5+ Nf6 15. Bxf6+ (15. Rf1 h6 $16) 15... Bxf6 16. O-O Bxb5 17. Nxb5 $14) ({Predecessor:} 11... cxd4 12. fxe6 fxe6 13. Qh5+ Ke7 14. Bxd7 dxc3 15. O-O Bd4+ 16. Kh1 Kxd7 17. bxc3 Bf6 {1-0 (30) Tari,A (2639)-Preotu,R (2487) Chess.com INT 2021}) 12. g3 {[%emt 0:03:17]} Qxd4 {[%emt 0:00:04]} 13. fxe6 {[%emt 0:04:40]} Qe5+ {[%emt 0:04:59]} 14. Kf2 {[%emt 0:09:47] White is more active.} ({Of course not} 14. Qe2 fxe6 15. O-O Qxe2 16. Bxd7+ Kxd7 $11) 14... fxe6 {[%emt 0:00:12]} (14... Bxb5 $2 15. Nxb5 (15. exf7+ Kxf7 16. Nxb5 Ne7 $18) 15... fxe6 16. Bf4 $18) 15. Kg2 {[%emt 0:11:26] aiming for Re1.} Ne7 {[%emt 0:11:23]} 16. Re1 {[%emt 0:11:06]} Qf5 {[%emt 0:00:05] [#]} (16... Qf6 $142) 17. Bxd7+ {[%emt 0:11:29]} (17. Rf1 Qg6 $11) (17. Ne4 $1 $16 {[%cal Re4d6][%mdl 512] And now Nd6+ would win.} O-O 18. Bxd7 dxe4 19. dxe4) 17... Kxd7 $11 {[%emt 0:00:05]} 18. Ne4 {[%emt 0:00:04]} Kc6 {[%emt 0:08:56] [#]} (18... Rac8 $11 {keeps the balance.}) 19. Ng5 $1 $36 {[%emt 0:05:54][%mdl 2048] g4 is the strong threat. White is on the roll.} e5 {[%emt 0:01:20]} 20. Rf1 {[%emt 0:01:15]} Qg6 {[%emt 0:00:27]} 21. Qg4 {[%emt 0:00:29] Black must now prevent Rf7.} Rhf8 {[%emt 0:01:56] Against Rf7} 22. Be3 {[%emt 0:05:16]} (22. Rxf8 $14 Rxf8 23. Qe6+ Qxe6 24. Nxe6) 22... Rf5 $2 {[%emt 0:03:33] This move loses the game for Black.} (22... Nf5 $1 $15 {keeps the upper hand.} 23. Qa4+ Kc7) 23. Qa4+ $18 {[%emt 0:01:38]} Kc7 {[%emt 0:02:15]} 24. Bxc5 {[%emt 0:02:57][%cal Be3c5,Bc5e7,Be7g5][%mdl 32]} (24. Qb5 b6 $15) 24... Rxf1 {[%emt 0:01:27]} 25. Rxf1 {[%emt 0:00:47] Really sharp!} Qxg5 {[%emt 0:00:03]} 26. h4 {[%emt 0:00:54][%mdl 64] Deflection} ({Don't take} 26. Rf7 $6 Qd2+ 27. Rf2 (27. Kh3 Qh6+ 28. Kg2 Qd2+ 29. Kh3 Qh6+ 30. Kg2 Qd2+ $18) 27... Qh6) 26... Qg6 {[%emt 0:01:18]} (26... Qd2+ $2 27. Rf2 Qxf2+ 28. Bxf2 $18) 27. Bxe7 {[%emt 0:00:11]} Re8 $2 {[%emt 0:00:32]} (27... a5 {keeps fighting.} 28. Qb5 Qc6 29. Qxc6+ Kxc6) 28. Qa5+ {[%emt 0:01:56]} ({Not} 28. Bc5 a6 29. Ba7 Kc8 $16) 28... Kc8 {[%emt 0:00:38]} 29. Qc5+ {[%emt 0:00:30]} Kd7 $2 {[%emt 0:00:38]} (29... Qc6 30. Qxc6+ bxc6) 30. Bg5 {[%emt 0:03:03]} Qe6 {[%emt 0:00:17]} 31. Qxa7 {[%emt 0:00:29]} Kc8 {[%emt 0:00:27]} 32. c4 {[%emt 0:01:12]} d4 {[%emt 0:00:35]} 33. Qc5+ {[%emt 0:00:22]} Kb8 {[%emt 0:00:06]} 34. Qd5 {[%emt 0:00:17] Threatens to win with Rf7.} Qb6 {[%emt 0:01:02]} (34... h6 $142 35. Qxe6 Rxe6) 35. Qd7 {[%emt 0:01:02] Weighted Error Value: White=0.22 (precise) /Black=0.42} 1-0

[Event "37th ECCC 2022"]
[Site "Mayrhofen"]
[Date "2022.10.06"]
[Round "4.35"]
[White "Hedman, Erik"]
[Black "Ahmadzada, Ahmad"]
[Result "0-1"]
[ECO "A37"]
[WhiteElo "2322"]
[BlackElo "2488"]
[Annotator "TA"]
[PlyCount "58"]
[EventDate "2022.10.03"]
[EventType "team-tourn"]
[EventCountry "AUT"]
[SourceTitle "playchess.com"]
[Source "ChessBase"]
[SourceQuality "1"]
[TimeControl "40/5400+30:1800+30"]

{[%evp 15,58,4,-4,-2,7,-24,-4,-19,16,-8,-22,-40,-19,-29,-25,-23,-10,-50,-36,-53,-48,-47,-20,-20,-15,-114,-66,-70,-65,-81,-63,-131,-82,-70,-68,-78,-43,-145,-148,-247,-218,-481,-481,-477,-468]} 1. Nf3 {[%emt 0:00:04]} c5 {[%emt 0:00:27]} 2. g3 {[%emt 0:00:23]} Nc6 {[%emt 0:00:25]} 3. Bg2 {[%emt 0:00:19]} g6 {[%emt 0:00:30]} 4. c4 {[%emt 0:00:14]} Bg7 {[%emt 0:00:09]} 5. Nc3 {[%emt 0:00:05]} e5 {[%emt 0:01:00][%cal Be7e5,Be5e4][%mdl 32]} 6. a3 {[%emt 0:09:11]} d6 {[%emt 0:05:15]} 7. O-O {[%emt 0:03:27] 7.Rb1 is not played anymore.} Nge7 {[%emt 0:01:30]} 8. b4 {[%emt 0:04:30]} O-O {[%emt 0:04:30]} 9. Rb1 {[%emt 0:00:25] A37: Symmetrical English vs ...g6: 4 Bg2 Bg7 5 Nf3.} f5 {[%emt 0:03:04]} 10. Na4 {[%emt 0:05:39]} e4 {[%emt 0:10:05]} 11. Ne1 {[%emt 0:01:41] The position is equal.} cxb4 {[%emt 0:01:33] [#]} 12. d3 $146 {[%emt 0:09:20]} ({Predecessor:} 12. axb4 b5 13. cxb5 Nd4 14. Bb2 Nxb5 15. Qb3+ d5 16. Bxg7 Kxg7 17. Qb2+ Kg8 18. Nc2 {1-0 (45) Dimitrov,R (2505)-Petrov,M (2525) Primorsko 2020}) 12... d5 {[%emt 0:04:48]} 13. cxd5 {[%emt 0:13:13]} Nxd5 {[%emt 0:04:07]} 14. dxe4 {[%emt 0:06:26]} Nc3 {[%emt 0:03:16]} 15. Nxc3 {[%emt 0:07:21]} bxc3 {[%emt 0:00:30]} 16. Qb3+ {[%emt 0:07:14]} Kh8 {[%emt 0:00:24]} 17. Be3 {[%emt 0:01:41]} fxe4 {[%emt 0:09:24]} 18. Nc2 {[%emt 0:06:00]} Qe7 {[%emt 0:03:29]} 19. Rfd1 {[%emt 0:03:08]} Re8 {[%emt 0:21:35]} 20. Qc4 {[%emt 0:09:26]} (20. Nd4 $11) 20... Bg4 {[%emt 0:03:39]} (20... Bf5 $1 $17 21. h3 Rac8) 21. h3 $15 {[%emt 0:04:57]} Ne5 $36 {[%emt 0:02:03][%mdl 2048] Black is more active.} 22. Qxe4 {[%emt 0:00:39]} Bxe2 {[%emt 0:01:03]} 23. Rd4 {[%emt 0:02:46]} ({Better is} 23. Re1 $1 $15 Bd3 24. Qxb7) 23... Nc6 {[%emt 0:05:32]} (23... Qf6 $142 {And now ...Nf3+ would win.} 24. Qxb7 Bf3) 24. Qxe7 $17 {[%emt 0:01:22]} Rxe7 {[%emt 0:00:15]} 25. Rd6 {[%emt 0:01:08]} Be5 {[%emt 0:07:28]} 26. Rxc6 {[%emt 0:01:02]} ({White has to play} 26. Rd5 $1 $15) 26... bxc6 {[%emt 0:00:10]} 27. Re1 {[%emt 0:00:02] [#]} (27. Nd4 $17 {was worth a try.} Bd3 28. Rb3) 27... Bb5 $1 $19 {[%emt 0:02:45]} 28. Bd4 $2 {[%emt 0:00:48] [#]} (28. Bg5 Rae8 29. Bxe7 Rxe7 30. Nb4) 28... Bxd4 $1 {[%emt 0:00:22]} 29. Rxe7 {[%emt 0:00:04]} Rd8 {[%emt 0:00:31] Weighted Error Value: White=0.36/Black=0.11 (very precise)} 0-1

[Event "37th ECCC 2022"]
[Site "Mayrhofen"]
[Date "2022.10.06"]
[Round "4.36"]
[White "Sadikhov, Ulvi"]
[Black "Bator, Robert"]
[Result "1/2-1/2"]
[ECO "B30"]
[WhiteElo "2473"]
[BlackElo "2353"]
[Annotator "TA"]
[PlyCount "98"]
[EventDate "2022.10.03"]
[EventType "team-tourn"]
[EventCountry "AUT"]
[SourceTitle "playchess.com"]
[Source "ChessBase"]
[SourceQuality "1"]
[TimeControl "40/5400+30:1800+30"]

{[%evp 21,98,-16,-18,-45,-7,-36,-30,-75,-79,-72,-72,-66,-68,-72,-70,-92,-52,-48,-53,-59,-48,-52,0,0,0,0,1,-14,8,-108,-133,-114,0,-13,-20,-6,-25,-5,0,-50,-54,-49,-49,-58,-50,-78,-58,-60,-48,-43,-53,-47,-30,-101,-89,-92,-87,-79,-58,-77,-71,-45,-24,-33,-18,-30,-21,-11,-3,-175,0,0,-8,-10,-4,-3,-2,-2,-2]} 1. e4 {[%emt 0:00:03] Marin,M} c5 {[%emt 0:01:14]} 2. Nf3 {[%emt 0:00:08]} Nc6 {[%emt 0:00:05]} 3. g3 {[%emt 0:00:11]} Nf6 {[%emt 0:04:39]} 4. d3 {[%emt 0:00:55]} g6 {[%emt 0:07:25]} 5. Bg2 {[%emt 0:00:13]} Bg7 {[%emt 0:00:09]} 6. O-O {[%emt 0:00:10]} O-O {[%emt 0:00:11]} 7. Re1 {[%emt 0:02:36]} e5 {[%emt 0:06:08]} 8. c3 {[%emt 0:00:41]} d5 {[%emt 0:02:11]} 9. exd5 {[%emt 0:01:33]} Nxd5 {[%emt 0:00:28]} 10. Nbd2 {[%emt 0:00:55]} h6 {[%emt 0:06:59]} 11. Nc4 {[%emt 0:05:02]} Re8 $1 {[%emt 0:01:27]} (11... Bg4 12. Qb3 $14) 12. Qb3 {[%emt 0:00:13][%cal Of3e5] A08: King's Indian Attack.} Nb6 {[%emt 0:05:29]} 13. Nfd2 {[%emt 0:20:39]} Be6 {[%emt 0:11:30] [#]} ({Much less strong is} 13... Qxd3 14. Nxb6 axb6 15. Qxb6 $14) 14. Qb5 $146 {[%emt 0:10:38] Black has an edge.} ({Predecessor:} 14. Qc2 f5 15. Bxc6 Bxc4 16. Nxc4 bxc6 17. Qb3 Kh7 18. Be3 Qd5 19. Na5 Nd7 20. Qa4 {0-1 (34) Maiwald,J (2505)-Movsesian,S (2645) Germany 2006 CBM 112 [Marin,M]}) 14... Qxd3 {[%emt 0:05:07][%cal Re6c4]} 15. Bf1 {[%emt 0:01:25]} Qd8 {[%emt 0:03:40]} 16. Qxc5 {[%emt 0:02:25]} Nd7 {[%emt 0:04:45]} 17. Qe3 {[%emt 0:03:13]} Qc7 {[%emt 0:02:09] Prevents Nd6.} 18. Ne4 {[%emt 0:01:20]} Nb6 {[%emt 0:09:36]} 19. Ncd6 {[%emt 0:02:50]} Red8 {[%emt 0:01:24]} 20. Nb5 {[%emt 0:00:20]} Qb8 {[%emt 0:03:41]} 21. Nc5 {[%emt 0:12:38]} Bc4 {[%emt 0:00:34]} (21... Bd5 $15) 22. Bxc4 $11 {[%emt 0:04:23]} Nxc4 {[%emt 0:00:06]} 23. Qe4 {[%emt 0:00:44]} Nb6 {[%emt 0:03:21]} 24. Qh4 {[%emt 0:02:58]} Rd5 {[%emt 0:05:35]} (24... a6 $5 25. Na3 $8 g5 $11) 25. b4 {[%emt 0:01:15]} (25. Be3 $11 {remains equal.}) 25... a6 $17 {[%emt 0:01:09] Hoping for ...g5.} 26. Na3 {[%emt 0:01:37] [#]} a5 {[%emt 0:04:33]} (26... e4 $1 $17 {...Rh5 is the strong threat.} 27. Nxe4 Rh5) 27. Nc4 {[%emt 0:02:49]} Nxc4 {[%emt 0:02:28]} 28. Qxc4 {[%emt 0:00:08]} Ne7 {[%emt 0:00:31][%cal Bc6e7,Be7f5,Bf5e3][%mdl 32]} 29. Be3 {[%emt 0:07:48]} b6 {[%emt 0:01:31]} 30. Nb3 {[%emt 0:00:45]} ({White should play} 30. Ne4 $11) 30... axb4 $15 {[%emt 0:02:28]} 31. Qxb4 {[%emt 0:04:37]} Rd6 {[%emt 0:00:10]} 32. c4 {[%emt 0:00:35] Inhibits Nd5.} Nf5 {[%emt 0:00:45]} 33. a4 {[%emt 0:04:35]} Nxe3 {[%emt 0:01:00]} 34. Rxe3 {[%emt 0:00:07]} Qc7 {[%emt 0:00:28]} 35. Qb5 {[%emt 0:01:58]} Rc6 {[%emt 0:00:48]} 36. Rc1 {[%emt 0:00:23]} h5 {[%emt 0:00:48]} 37. Rec3 {[%emt 0:02:13]} (37. Ree1 $11) 37... e4 $17 {[%emt 0:00:36][%cal Be5e4,Be4e3][%mdl 32]} 38. R3c2 {[%emt 0:00:03]} Bh6 {[%emt 0:01:26]} 39. Re1 {[%emt 0:00:51]} Re6 {[%emt 0:00:46]} 40. c5 {[%emt 0:02:26]} e3 {[%emt 0:01:07] White must now prevent ...exf2+.} 41. f4 {[%emt 0:04:58]} bxc5 {[%emt 0:02:12]} (41... Bg7 $5 {[%cal Rb6c5]}) 42. Rxc5 {[%emt 0:02:47]} Qa7 {[%emt 0:00:40]} 43. Qc4 {[%emt 0:07:07]} e2 {[%emt 0:06:24]} 44. Kg2 {[%emt 0:00:42]} ({But not} 44. Rxe2 $2 Rxe2 45. Qxe2 Bf8 $19) 44... Bf8 {[%emt 0:01:16]} 45. Rb5 {[%emt 0:03:13]} (45. Rc7 $11 {and White has nothing to worry.} Qxa4 46. Qxa4 Rxa4 47. Rc8) 45... Qxa4 $2 {[%emt 0:06:33]} (45... Rd8 $19 {aiming for ...Rd1.} 46. Rxe2 {[#]} Rc8 $3 {[%mdl 512]}) 46. Qxa4 $11 {[%emt 0:00:13] The position is equal.} Rxa4 {[%emt 0:00:08]} 47. Kf2 {[%emt 0:00:54]} Ra2 {[%emt 0:01:38] And now ...Bg7 would win.} 48. Nd4 {[%emt 0:01:29][%csl LRe2,LRe6]} Re4 {[%emt 0:00:14]} 49. Rxe2 {[%emt 0:01:03]} Rexe2+ {[%emt 0:00:45] Weighted Error Value: White=0.22 (precise) /Black=0.19 (very precise)} 1/2-1/2

[Event "37th ECCC 2022"]
[Site "Mayrhofen"]
[Date "2022.10.06"]
[Round "4.37"]
[White "Rodshtein, Maxim"]
[Black "Ten Hertog, Hugo"]
[Result "1-0"]
[ECO "B06"]
[WhiteElo "2602"]
[BlackElo "2525"]
[Annotator "TA"]
[PlyCount "81"]
[EventDate "2022.10.03"]
[EventType "team-tourn"]
[EventCountry "AUT"]
[SourceTitle "playchess.com"]
[Source "ChessBase"]
[SourceQuality "1"]
[TimeControl "40/5400+30:1800+30"]

{[%evp 9,81,35,59,26,32,22,54,52,53,66,62,26,51,18,29,37,49,31,89,91,95,90,101,64,66,79,77,47,103,112,145,145,254,254,261,258,262,255,263,254,289,298,290,305,296,229,296,289,428,434,401,429,419,409,431,431,447,436,405,378,377,381,365,366,368,373,361,356,356,327,437,436,495,486]} 1. e4 {[%emt 0:00:07]} g6 {[%emt 0:00:29]} 2. d4 {[%emt 0:00:15]} d6 {[%emt 0:00:10]} 3. Nc3 {[%emt 0:01:10]} a6 {[%emt 0:09:29]} 4. h4 {[%emt 0:03:20]} h5 {[%emt 0:00:18]} 5. Be3 {[%emt 0:02:02]} b5 {[%emt 0:01:30]} 6. f3 {[%emt 0:03:42] B06: Modern Defence.} Nf6 {[%emt 0:20:30]} 7. Qd2 {[%emt 0:02:25] [#]} e5 $146 {[%emt 0:01:13]} ({Predecessor:} 7... Bb7 8. Nh3 Nbd7 9. Ng5 Bg7 10. Ne2 O-O 11. O-O-O c5 12. d5 Ne5 13. Nf4 b4 {1-0 (27) De Silva,L (2193)-Selbes,T (2287) Chess.com INT 2022}) 8. dxe5 {[%emt 0:27:43] White is slightly better.} dxe5 {[%emt 0:00:05]} 9. Qxd8+ {[%emt 0:00:42]} Kxd8 {[%emt 0:00:03]} 10. a4 {[%emt 0:06:38]} b4 {[%emt 0:00:45]} 11. Rd1+ {[%emt 0:01:26]} (11. Bg5 {with more complications.} Be7 12. Bxf6 Bxf6 13. O-O-O+) 11... Nbd7 {[%emt 0:01:35]} 12. Nb1 {[%emt 0:02:26][%cal Bc3b1,Bb1d2,Bd2c4][%mdl 32]} Ne8 {[%emt 0:13:16]} 13. Nd2 {[%emt 0:06:50]} Bh6 {[%emt 0:16:22]} (13... a5 $14) 14. Bxh6 $16 {[%emt 0:05:11]} Rxh6 {[%emt 0:00:08]} 15. Nc4 {[%emt 0:00:27] Against Nd6. Black must now prevent Nxe5.} f6 {[%emt 0:14:28]} 16. g3 {[%emt 0:00:59]} Ke7 {[%emt 0:07:05]} 17. Na5 {[%emt 0:01:59] White is much more active.} Kf8 {[%emt 0:01:42]} 18. Rh2 {[%emt 0:06:57]} Nb6 {[%emt 0:02:46] White now steadily converts the win.} (18... Nc5 $14) 19. b3 {[%emt 0:00:34]} Nd6 {[%emt 0:02:08]} 20. c3 {[%emt 0:02:04]} Be6 {[%emt 0:01:11]} (20... bxc3 $16 21. Rc2 Rh7) 21. cxb4 $18 {[%emt 0:00:43]} Rh7 {[%emt 0:00:17]} 22. Rc2 {[%emt 0:00:36]} Ne8 {[%emt 0:00:47]} 23. Ne2 {[%emt 0:01:47][%cal Bg1e2,Be2c1,Bc1d3][%mdl 32]} Rd7 {[%emt 0:01:42]} 24. Rxd7 {[%emt 0:00:37]} Nxd7 {[%emt 0:00:02]} 25. Nc1 {[%emt 0:01:50]} Kf7 {[%emt 0:00:35]} 26. Nd3 {[%emt 0:01:03]} Rb8 {[%emt 0:00:23]} 27. Nc6 {[%emt 0:01:23]} Ra8 {[%emt 0:01:53]} 28. Rc3 {[%emt 0:00:36]} Nb8 {[%emt 0:00:46]} (28... Nd6 $142 29. Na5 Ra7) 29. Nd8+ {[%emt 0:01:37]} Ke7 {[%emt 0:00:04]} 30. Nxe6 {[%emt 0:00:16]} Kxe6 {[%emt 0:00:02]} 31. f4 {[%emt 0:00:45]} Nd7 {[%emt 0:01:29]} 32. Bh3+ {[%emt 0:01:29]} f5 {[%emt 0:02:14]} 33. exf5+ {[%emt 0:03:46]} gxf5 {[%emt 0:00:03]} 34. fxe5 {[%emt 0:00:46]} Nxe5 {[%emt 0:00:14]} 35. Nf4+ {[%emt 0:02:35]} ({Much less strong is} 35. Nxe5 Kxe5 36. Rc5+ Kd4 37. Bxf5 Rb8 $18) 35... Kd6 {[%emt 0:00:04]} 36. Nxh5 {[%emt 0:00:28]} ({Less strong is} 36. Bxf5 Nf6 37. Re3 c6 $18) 36... Rb8 {[%emt 0:00:07]} 37. Bxf5 {[%emt 0:00:26]} Rxb4 {[%emt 0:00:03]} 38. Nf4 {[%emt 0:03:21]} Nf6 {[%emt 0:01:24]} 39. h5 {[%emt 0:03:15]} Rb8 {[%emt 0:00:04]} 40. Re3 {[%emt 0:00:56]} Rh8 {[%emt 0:00:35]} 41. Ng6 {[%emt 0:30:55] Weighted Error Value: White=0.09 (flawless) /Black=0.27 (precise)} 1-0

[Event "37th ECCC 2022"]
[Site "Mayrhofen"]
[Date "2022.10.06"]
[Round "4.38"]
[White "Lombaers, Peter"]
[Black "Mikhalevski, Victor"]
[Result "1/2-1/2"]
[ECO "D38"]
[WhiteElo "2351"]
[BlackElo "2523"]
[Annotator "TA"]
[PlyCount "125"]
[EventDate "2022.10.03"]
[EventType "team-tourn"]
[EventCountry "AUT"]
[SourceTitle "playchess.com"]
[Source "ChessBase"]
[SourceQuality "1"]
[TimeControl "40/5400+30:1800+30"]

{[%evp 12,125,12,6,0,-10,9,0,44,53,46,68,65,17,64,16,42,41,46,32,39,33,44,33,55,31,28,21,23,26,25,0,0,0,19,6,6,0,2,0,0,0,0,-208,-103,-100,-97,-127,-118,-71,-33,-126,-117,-112,-123,-156,-130,-117,-96,-96,-97,-237,-83,-94,-83,-85,-48,-48,0,0,-3,-34,-31,-23,0,0,0,0,0,0,12,12,12,12,24,24,24,24,24,24,24,24,24,24,24,24,29,29,29,29,29,0,0,0,0,0,0,0,0,0,0,0,0,0,0,0]} 1. d4 {[%emt 0:00:03]} d5 {[%emt 0:00:13]} 2. c4 {[%emt 0:00:04]} e6 {[%emt 0:00:04]} 3. Nf3 {[%emt 0:00:04]} Nf6 {[%emt 0:00:06]} 4. Nc3 {[%emt 0:00:03]} Bb4 {[%emt 0:00:06]} 5. Qa4+ {[%emt 0:00:03]} Nc6 {[%emt 0:00:06]} 6. a3 {[%emt 0:00:02]} Bxc3+ {[%emt 0:02:33]} 7. bxc3 {[%emt 0:00:05]} Ne4 {[%emt 0:04:12] D38: Queen's Gambit Declined: Ragozin Defence (4 Nf3 Bb4).} 8. e3 {[%emt 0:00:05]} O-O {[%emt 0:28:11]} 9. Bd3 {[%emt 0:03:15]} Ne7 {[%emt 0:00:26]} 10. Qc2 {[%emt 0:03:34] [#]} b6 $146 {[%emt 0:05:19]} ({Predecessor:} 10... Nf6 11. O-O c5 12. Rd1 Qc7 13. Bb2 dxc4 14. Bxc4 cxd4 15. cxd4 b5 16. Bd3 Qxc2 17. Bxc2 {½-½ (74) Topel,Z (2226)-Gaponenko,I (2465) Konya 2010}) 11. cxd5 {[%emt 0:13:51]} exd5 {[%emt 0:00:11]} 12. Nd2 {[%emt 0:00:47]} (12. O-O $14) 12... Nf6 {[%emt 0:10:21]} (12... Nxd2 $11 {should be considered.} 13. Bxd2 (13. Bxh7+ $2 Kh8 $19) 13... g6) 13. e4 {[%emt 0:17:42] White is more active.} (13. O-O $14) 13... dxe4 {[%emt 0:14:36]} 14. Nxe4 {[%emt 0:00:08]} Ng6 {[%emt 0:03:15]} 15. Bg5 {[%emt 0:07:10]} Bb7 {[%emt 0:00:11]} 16. O-O {[%emt 0:01:21]} Bxe4 $1 {[%emt 0:08:53]} 17. Bxe4 {[%emt 0:00:17] A strong pair of Bishops.} Rb8 {[%emt 0:00:07]} 18. Qa4 {[%emt 0:12:45]} a5 {[%emt 0:02:27]} 19. Rfe1 {[%emt 0:07:48]} h6 {[%emt 0:03:33]} 20. Bxf6 {[%emt 0:04:01]} Qxf6 {[%emt 0:00:06]} 21. Bc6 {[%emt 0:00:35]} Ne7 {[%emt 0:05:03]} 22. Bf3 {[%emt 0:01:11]} Rbc8 {[%emt 0:05:29]} 23. Qd7 {[%emt 0:08:21]} Ng6 {[%emt 0:01:30]} 24. Bb7 {[%emt 0:04:29][%cal Bf3b7,Bb7c8,Bc8d7][%mdl 32]} Rfd8 {[%emt 0:00:22]} 25. Bxc8 {[%emt 0:01:28]} Rxd7 {[%emt 0:00:04]} 26. Bxd7 {[%emt 0:00:05]} Nf4 {[%emt 0:00:25]} 27. Ra2 $2 {[%emt 0:05:42] [#]} (27. Re8+ $11 {and White stays safe.} Kh7 28. Re3) 27... Qd6 {[%emt 0:03:05]} (27... Nxg2 $1 $19 {[%mdl 512] has better winning chances.} 28. Kxg2 Qg5+ 29. Kf1 Qd5) 28. Bf5 $17 {[%emt 0:01:56] Black must now prevent Re8+.} g6 $36 {[%emt 0:00:04][%mdl 3072] Black has strong compensation. Black has strong initiative.} 29. Be4 {[%emt 0:00:40] [#] Prevents Qd5.} Qe6 $1 {[%emt 0:00:09]} 30. Raa1 {[%emt 0:00:54]} Qb3 {[%emt 0:01:04]} (30... Qc4 $5 {[%cal Rf4e2]} 31. Re3 Ne2+ 32. Kh1 Nxc3 $15) 31. Re3 {[%emt 0:02:00]} (31. g3 $15 f5 32. Bb7 (32. gxf4 fxe4 33. Re3 a4 $11)) 31... Qb2 {[%emt 0:00:15]} 32. Rae1 {[%emt 0:00:14]} Qxa3 {[%emt 0:00:19]} 33. h4 {[%emt 0:01:24]} Qd6 {[%emt 0:01:24]} 34. g3 {[%emt 0:01:35]} Nd5 {[%emt 0:00:07]} 35. Bxd5 {[%emt 0:01:31]} Qxd5 {[%emt 0:00:01][%mdl 4096] Endgame KQ-KRR} 36. Rc1 {[%emt 0:01:28]} (36. Re7 $17) 36... a4 $2 {[%emt 0:00:34]} (36... Qa2 $19 {and Black stays clearly on top. Hoping for ...Qd2.} 37. Ree1 Qc4) 37. c4 {[%emt 0:01:14]} Qxd4 {[%emt 0:01:51] And now ...Qb2 would win.} 38. Ra3 {[%emt 0:00:08]} Qc5 {[%emt 0:00:09]} 39. Rxa4 {[%emt 0:00:37]} b5 {[%emt 0:00:10]} 40. Raa1 {[%emt 0:00:53]} b4 {[%emt 0:01:53]} ({But not} 40... bxc4 41. Ra2 $14) 41. Ra8+ {[%emt 0:10:22]} Kg7 {[%emt 0:02:36] Strongly threatening ...g5.} 42. Rb8 {[%emt 0:00:07]} c6 {[%emt 0:04:51]} 43. Rb1 {[%emt 0:00:54]} Qxc4 {[%emt 0:00:11]} 44. R8xb4 {[%emt 0:00:11]} Qc5 {[%emt 0:04:43]} 45. Re4 {[%emt 0:01:53]} g5 {[%emt 0:08:59]} 46. hxg5 {[%emt 0:00:12]} hxg5 {[%emt 0:00:05]} 47. Ree1 {[%emt 0:00:40]} Kg6 {[%emt 0:02:47]} 48. Rec1 {[%emt 0:04:07]} Qd5 {[%emt 0:00:30]} 49. Rb6 {[%emt 0:00:20]} Kh5 {[%emt 0:01:36]} 50. Rbxc6 {[%emt 0:01:15]} f5 {[%emt 0:00:09]} 51. R6c5 {[%emt 0:03:21]} Qd2 {[%emt 0:02:47]} 52. R1c4 {[%emt 0:03:52]} Kg6 {[%emt 0:02:06]} 53. Kg2 {[%emt 0:04:22]} g4 {[%emt 0:01:12]} 54. Ra4 {[%emt 0:02:59]} Qd3 {[%emt 0:02:08] Threatens to win with ...Qf3+.} 55. Rc6+ {[%emt 0:01:03]} Kg5 {[%emt 0:00:30]} 56. Raa6 {[%emt 0:00:16] White threatens Rg6+ and mate.} Qf3+ {[%emt 0:00:12] The position is equal.} (56... Qe2 $2 {gets mated.} 57. Rg6+ Kh5 58. Rh6+ Kg5 59. Rag6#) 57. Kg1 {[%emt 0:00:06] The board is on fire.} Qd1+ $1 {[%emt 0:00:03]} 58. Kh2 {[%emt 0:00:07]} Qd2 {[%emt 0:00:04]} (58... Qf1 $2 {leads to mate.} 59. Rg6+ Kh5 60. Rh6+ Kg5 61. Rag6#) 59. Rg6+ {[%emt 0:01:28]} Kh5 {[%emt 0:00:01]} 60. Kg2 {[%emt 0:01:21] Intending Rgd6 and mate.} Qd5+ {[%emt 0:00:06]} 61. Kg1 {[%emt 0:00:11] Rh6+ would kill now.} Qd1+ {[%emt 0:00:02]} 62. Kh2 {[%emt 0:00:04] Threatening mate with Rh6+.} Qd2 {[%emt 0:00:07] Inhibits Rh6+.} 63. Kg2 {[%emt 0:01:58] Weighted Error Value: White=0.14 (very precise) /Black=0.13 (very precise)} 1/2-1/2